Workbook

Sheet Wind Tunnel
A1: Design Wind Tunnel
A4: Input parametres | F4: Nozzle: Area ratio | K4: First diffuser: Inlet cross sectional area | P4: Settling chamber: Screens | U4: Nozzle curve
A5: Dimension | B5: Value | C5: unity | F5: Dimension | G5: Value | H5: unity | K5: Dimension | L5: Value | M5: unity | P5: Dimension | Q5: Value | R5: unity | U5: Dimension | V5: Dimension | W5: Dimension
A6: test chamber square | B6: 0.25 | C6: m | F6: ratio | G6: =(G11*G11)/(G10*G10) -> 5.975308642 | H6: 6<r<10 | K6: Fan diameter | L6: =Fan!B17/1000 -> 0.3048 | M6: m | P6: dw | Q6: 0.5 | R6: mm | U6: % | V6: X/L | W6: y
A7: air velocity cts | B7: =Fan!G8 -> 10.5675148 | C7: m/s | K7: fan cross section area Af | L7: =PI()*L6*L6/4 -> 0.07296587699 | M7: m2 | P7: Wm | Q7: 4 | R7: mm | U7: 0 | V7: =U7/100 -> 0 | W7: =$G$15*(V7^5)+$G$16*(V7^4)+$G$17*(V7^3)+$G$18*(V7^2)+$G$19*(V7^1)+$G$20 -> 0.3055555556
F8: Total axial nozzle length L | G8: 0.55 | H8: m | K8: l | L8: =SQRT(PI())*L6/2 -> 0.2701219669 | M8: m | P8: porosity | Q8: =((Q7-Q6)^2)/(Q7*Q7) -> 0.765625 | R8: 0.58<p<0.8 | U8: 1 | V8: =U8/100 -> 0.01 | W8: =$G$15*(V8^5)+$G$16*(V8^4)+$G$17*(V8^3)+$G$18*(V8^2)+$G$19*(V8^1)+$G$20 -> 0.305553777
A9: Surface cross section Ats | B9: =B6*B6 -> 0.0625 | C9: m2 | F9: half cross section side length h | G9: =B6/2 -> 0.125 | H9: m | K9: Ar | L9: =(L8*L8)/(B6*B6) -> 1.167454032 | M9: 2<R<3 | U9: 2 | V9: 0.02 | W9: 0.305541541
A10: Hydraulic diameter Dh | B10: =2*SQRT(B9/PI()) -> 0.2820947918 | C10: m | F10: y1 | G10: =G9 -> 0.125 | H10: m | U10: 3 | V10: 0.03 | W10: 0.305508973
F11: y0 | G11: =G8/(2*G12) -> 0.3055555556 | H11: m | K11: outlet air velocity | L11: =B7/L9 -> 9.051760934 | M11: m/s | N11: incompressible flow | U11: 4 | V11: 0.04 | W11: 0.3054468224
A12: Test chamber length | F12: L/(2*y0) | G12: 0.9 | H12: 0.67<R<1.79 | U12: 5 | V12: 0.05 | W12: 0.3053464497
A13: Test chamber factor | B13: 1.5 | C13: 0.5<f<3 | F13: l/L | G13: =B14/G8 -> 0.7693494321 | K13: thetae | L13: 6 | M13: deg | N13: <6deg | U13: 6 | V13: 0.06 | W13: 0.3051998132
A14: Test chamber length l | B14: =B10*B13 -> 0.4231421877 | C14: m | K14: 2*thetae | L14: =2*L13 -> 12 | M14: deg | U14: 7 | V14: 0.07 | W14: 0.3049994563
F15: a | G15: =6*(G10-G11) -> -1.083333333 | H15: m | K15: L | L15: =B10*SQRT(L9-1)/(2*TAN(RADIANS(L13))) -> 0.5491521143 | M15: m | U15: 8 | V15: 0.08 | W15: 0.3047384946
A16: Chamfer the sharp edge | B16: 45 | C16: deg | F16: b | G16: =15*(G11-G10) -> 2.708333333 | H16: m | U16: 9 | V16: 0.09 | W16: 0.3044106023
F17: c | G17: =10*(G10-G11) -> -1.805555556 | H17: m | U17: 10 | V17: 0.1 | W17: 0.30401
F18: d | G18: 0 | H18: m | U18: 11 | V18: 0.11 | W18: 0.303531441
F19: e | G19: 0 | H19: m | U19: 12 | V19: 0.12 | W19: 0.3029701988
F20: f | G20: =G11 -> 0.3055555556 | H20: m | U20: 13 | V20: 0.13 | W20: 0.3023220537
U21: 14 | V21: 0.14 | W21: 0.3015832802
U22: 15 | V22: 0.15 | W22: 0.3007506337
K23: Total wind tunnel length | L23: =B14+G8+L15 -> 1.522294302 | M23: m | U23: 16 | V23: 0.16 | W23: 0.2998213376
U24: 17 | V24: 0.17 | W24: 0.2987930704
U25: 18 | V25: 0.18 | W25: 0.2976639524
U26: 19 | V26: 0.19 | W26: 0.296432533
U27: 20 | V27: 0.2 | W27: 0.2950977778
A28: Aera required | U28: 21 | V28: 0.21 | W28: 0.293659055
A29: Nozze panel | B29: =SQRT(G8^2+(G11-G10)^2)*(B6+2*G11)/2 -> 0.2492393508 | C29: m2 | U29: 22 | V29: 0.22 | W29: 0.2921161232
A30: Test chamber panel | B30: 0.105 | C30: m2 | U30: 23 | V30: 0.23 | W30: 0.2904691177
A31: Diffuser panel | B31: =((B6+L6)*L15/COS(RADIANS(L13)))/2 -> 0.1531738991 | C31: m2 | U31: 24 | V31: 0.24 | W31: 0.288718538
U32: 25 | V32: 0.25 | W32: 0.2868652344
A33: Total | B33: =4*SUM(B29:B31) -> 2.029653 | C33: m2 | U33: 26 | V33: 0.26 | W33: 0.2849103954
U34: 27 | V34: 0.27 | W34: 0.2828555344
U35: 28 | V35: 0.28 | W35: 0.2807024768
U36: 29 | V36: 0.29 | W36: 0.2784533471
U37: 30 | V37: 0.3 | W37: 0.2761105556
U38: 31 | V38: 0.31 | W38: 0.2736767857
U39: 32 | V39: 0.32 | W39: 0.271154981
U40: 33 | V40: 0.33 | W40: 0.2685483317
U41: 34 | V41: 0.34 | W41: 0.2658602624
U42: 35 | V42: 0.35 | W42: 0.2630944184
U43: 36 | V43: 0.36 | W43: 0.2602546532
U44: 37 | V44: 0.37 | W44: 0.2573450151
U45: 38 | V45: 0.38 | W45: 0.2543697346
U46: 39 | V46: 0.39 | W46: 0.2513332111
U47: 40 | V47: 0.4 | W47: 0.24824
U48: 41 | V48: 0.41 | W48: 0.2450947998
U49: 42 | V49: 0.42 | W49: 0.2419024388
U50: 43 | V50: 0.43 | W50: 0.2386678624
U51: 44 | V51: 0.44 | W51: 0.2353961202
U52: 45 | V52: 0.45 | W52: 0.2320923524
U53: 46 | V53: 0.46 | W53: 0.2287617776
U54: 47 | V54: 0.47 | W54: 0.2254096791
U55: 48 | V55: 0.48 | W55: 0.2220413924
U56: 49 | V56: 0.49 | W56: 0.2186622918
U57: 50 | V57: 0.5 | W57: 0.2152777778
U58: 51 | V58: 0.51 | W58: 0.2118932638
U59: 52 | V59: 0.52 | W59: 0.2085141632
U60: 53 | V60: 0.53 | W60: 0.2051458765
U61: 54 | V61: 0.54 | W61: 0.201793778
U62: 55 | V62: 0.55 | W62: 0.1984632031
U63: 56 | V63: 0.56 | W63: 0.1951594354
U64: 57 | V64: 0.57 | W64: 0.1918876931
U65: 58 | V65: 0.58 | W65: 0.1886531168
U66: 59 | V66: 0.59 | W66: 0.1854607558
U67: 60 | V67: 0.6 | W67: 0.1823155556
U68: 61 | V68: 0.61 | W68: 0.1792223445
U69: 62 | V69: 0.62 | W69: 0.176185821
U70: 63 | V70: 0.63 | W70: 0.1732105405
U71: 64 | V71: 0.64 | W71: 0.1703009024
U72: 65 | V72: =U72/100 -> 0.65 | W72: =$G$15*(V72^5)+$G$16*(V72^4)+$G$17*(V72^3)+$G$18*(V72^2)+$G$19*(V72^1)+$G$20 -> 0.1674611372
U73: 66 | V73: 0.66 | W73: 0.1646952932
U74: 67 | V74: 0.67 | W74: 0.1620072238
U75: 68 | V75: 0.68 | W75: 0.1594005746
U76: 69 | V76: 0.69 | W76: 0.1568787698
U77: 70 | V77: 0.7 | W77: 0.154445
U78: 71 | V78: 0.71 | W78: 0.1521022085
U79: 72 | V79: 0.72 | W79: 0.1498530788
U80: 73 | V80: 0.73 | W80: 0.1477000212
U81: 74 | V81: 0.74 | W81: 0.1456451602
U82: 75 | V82: 0.75 | W82: 0.1436903212
U83: 76 | V83: 0.76 | W83: 0.1418370176
U84: 77 | V84: 0.77 | W84: 0.1400864379
U85: 78 | V85: 0.78 | W85: 0.1384394324
U86: 79 | V86: 0.79 | W86: 0.1368965005
U87: 80 | V87: 0.8 | W87: 0.1354577778
U88: 81 | V88: 0.81 | W88: 0.1341230225
U89: 82 | V89: 0.82 | W89: 0.1328916032
U90: 83 | V90: 0.83 | W90: 0.1317624852
U91: 84 | V91: 0.84 | W91: 0.130734218
U92: 85 | V92: 0.85 | W92: 0.1298049219
U93: 86 | V93: 0.86 | W93: 0.1289722754
U94: 87 | V94: 0.87 | W94: 0.1282335019
U95: 88 | V95: 0.88 | W95: 0.1275853568
U96: 89 | V96: 0.89 | W96: 0.1270241146
U97: 90 | V97: 0.9 | W97: 0.1265455556
U98: 91 | V98: 0.91 | W98: 0.1261449532
U99: 92 | V99: 0.92 | W99: 0.125817061
U100: 93 | V100: 0.93 | W100: 0.1255560992
U101: 94 | V101: 0.94 | W101: 0.1253557424
U102: 95 | V102: 0.95 | W102: 0.1252091059
U103: 96 | V103: 0.96 | W103: 0.1251087332
U104: 97 | V104: 0.97 | W104: 0.1250465826
U105: 98 | V105: 0.98 | W105: 0.1250140146
U106: 99 | V106: 0.99 | W106: 0.1250017786
U107: 100 | V107: 1 | W107: 0.125

Sheet HoneyComb
A1: Honeycomb
A4: air properties
A5: Dimension | B5: Value | C5: unity
A6: lhoney | B6: 7 | C6: mm
A7: shoney | B7: 1 | C7: mm
A8: Lh | B8: 80 | C8: mm
A9: dhoney | B9: =2*B6*COS(RADIANS(30)) -> 12.12435565 | C9: mm | M9: =B9+2 -> 14.12435565
A10: Dh | B10: =B9*SQRT(6/(PI()*SQRT(3))) -> 12.73148441 | C10: mm
A11: lghoney | B11: =B6+B7/COS(RADIANS(30)) -> 8.154700538 | C11: mm
A12: z | B12: =2*B6+B11 -> 22.15470054 | C12: mm
A14: nz | B14: =2*1000*'Wind Tunnel'!G11/B12 -> 27.58381275
A15: nsheet | B15: =2*1000*'Wind Tunnel'!G11/(B9/2+B7) -> 86.5329543
A17: Aparallelogram | B17: =B6*B7 -> 7 | C17: mm2
A18: Atrapeze | B18: =(B6+B11)*B7/2 -> 7.577350269 | C18: mm2
A19: Asheet | B19: =2*(B17+B18)*B14*B15 -> 69589.6115 | C19: mm2
A20: σh | B20: =B19/((2*1000*'Wind Tunnel'!G11)^2) -> 0.186339125 | C20: solidity
A22: Lh/Dh | B22: =B8/B10 -> 6.283634919 | C22: 6<R<8
A23: bh | B23: =1-B20 -> 0.813660875 | C23: >0.8

Sheet Losses
A1: Losses Wind Tunnel
I4: air properties | M4: Friction losses | R4: Nozzle losses
I5: Dimension | J5: Value | K5: unity | M5: Dimension | N5: Value | O5: unity | R5: Dimension | S5: Value | T5: unity
I6: μ | J6: =1.85*10^-5 -> 1.85e-05 | K6: kg·m−1·s−1 | M6: L | N6: ='Wind Tunnel'!B14+'Wind Tunnel'!G8+'Wind Tunnel'!L15 -> 1.522294302 | O6: m | R6: Smooth entry | S6: 0.04
I7: ρ | J7: 1.225 | K7: Kg.m-3 | M7: W | N7: ='Wind Tunnel'!B6 -> 0.25 | O7: m | R7: μ | S7: 1.1 | T7: ?
I8: V | J8: ='Wind Tunnel'!B7 -> 10.5675148 | K8: m.s-1 | M8: De | N8: =4*N7*N7/(2*(N7+N7)) -> 0.25 | O8: m | R8: α | S8: =ATAN(0.511) -> 0.4724088344 | T8: rad | U8: slope
R9: Shrinkage | S9: =SIN(S8)*(1/S7-1)^2 -> 0.003760600081
I10: Re | J10: =J7*J8*N7/J6 -> 174935.2112 | M10: Δp | N10: =(J19/N8)*(J7*J8*J8*N6)/2 -> 7.080425488 | O10: Pa
R11: Total Δp | S11: =(S6+S9)*J7*J8*J8/2 -> 2.993195551 | T11: Pa
I12: Plexiglas properties
I13: Dimension | J13: Value | K13: unity
I14: ɛ | J14: 0.0015 | K14: mm | R14: First diffuser losses
I15: ɛ/De | J15: =J14/(1000*N8) -> 6e-06 | R15: Dimension | S15: Value | T15: unity
R16: Enlargement sharp | S16: 0
I17: friction coefficient | R17: S1 | S17: =N7*N7 -> 0.0625 | T17: m2
I18: Dimension | J18: Value | K18: unity | R18: S2 | S18: ='Wind Tunnel'!L8*'Wind Tunnel'!L8 -> 0.07296587699 | T18: m2
I19: f | J19: 0.017 | K19: Moody | R19: α | S19: ='Wind Tunnel'!L13 -> 6 | T19: deg
J20: stable | R20: Enlargement | S20: =SIN(RADIANS(S19))*(1-S17/S18)^2 -> 0.00215053346
R22: Total Δp | S22: =(S16+S20)*J8*J8*J7/2 -> 0.1470950393 | T22: Pa
R25: First screen losses
R26: Dimension | S26: Value | T26: unity
R27: dw | S27: ='Wind Tunnel'!Q6 -> 0.5 | T27: mm
R28: Wm | S28: ='Wind Tunnel'!Q7 -> 4 | T28: mm
R29: Open Area | S29: =(S28-S27)^2 -> 12.25 | T29: mm2
R30: Total Area | S30: =S28*S28 -> 16 | T30: mm2
R31: FAR | S31: =S29/S30 -> 0.765625
R32: Screen | S32: =1.3*(1-S31)+(1/S31-1)^2 -> 0.3983984538
R34: Total Δp | S34: =S32*J7*J8*J8/2 -> 27.25018572 | T34: Pa
R37: Second screen losses
R38: Dimension | S38: Value | T38: unity
R39: dw | S39: 1 | T39: mm
R40: Wm | S40: 6 | T40: mm
R41: Open Area | S41: =(S40-S39)^2 -> 25 | T41: mm2
R42: Total Area | S42: =S40*S40 -> 36 | T42: mm2
R43: FAR | S43: =S41/S42 -> 0.6944444444
R44: Screen | S44: =1.3*(1-S43)+(1/S43-1)^2 -> 0.5908222222
R46: Total Δp | S46: =S44*J7*J8*J8/2 -> 40.41184179 | T46: Pa
R48: Total losses | S48: =N10+S11+S22+S46 -> 50.63255787 | T48: Pa | U48: Without first sreen

Sheet Aerofoil
A1: Aerofoil Design 2D incompressible M=0
A4: Span wise | N4: xtr/c | Y4: Aerofoil Curve
A5: Dimension | B5: Value | C5: unity | N5: AoA α | O5: xtr/c | Y5: x | Z5: x/c | AA5: t
A6: test chamber allowable L | B6: 0.7 | C6: <0.7-0.8 | N6: 0 | O6: 1 | Y6: =Z6*1000 -> 0 | Z6: 0 | AA6: =($B$13*1000/(0.2*100))*(0.2969*SQRT(Z6)-0.126*Z6-0.3516*Z6^2+0.2843*Z6^3-0.1015*Z6^4) -> 0
A7: Spanwise | B7: =B6*'Wind Tunnel'!B6*1000 -> 175 | C7: mm | D7: 240 | N7: 2 | O7: 0.8 | Y7: =Z7*1000 -> 3.5 | Z7: 0.0035 | AA7: =($B$13*1000/(0.2*100))*(0.2969*SQRT(Z7)-0.126*Z7-0.3516*Z7^2+0.2843*Z7^3-0.1015*Z7^4) -> 10.27172757
N8: 4 | O8: 0.5 | Y8: 10 | Z8: 0.01 | AA8: =($B$13*1000/(0.2*100))*(0.2969*SQRT(Z8)-0.126*Z8-0.3516*Z8^2+0.2843*Z8^3-0.1015*Z8^4) -> 17.03707397
A9: Thickness | N9: 6 | O9: 0.3 | Y9: 50 | Z9: 0.05 | AA9: 35.54685683
A10: Dimension | B10: Value | C10: unity | N10: 8 | O10: 0.1 | Y10: 100 | Z10: 0.1 | AA10: =($B$13*1000/(0.2*100))*(0.2969*SQRT(Z10)-0.126*Z10-0.3516*Z10^2+0.2843*Z10^3-0.1015*Z10^4) -> 46.82770424
A11: test chamber allowable A | B11: 0.04 | C11: <0.05-0.1 | N11: 10 | O11: 0.1 | Y11: 200 | Z11: 0.2 | AA11: 57.3754299
A12: Aerofoil section | B12: =B11*'Wind Tunnel'!B9*1000000 -> 2500 | C12: mm2 | N12: 12 | O12: 0.075 | Y12: 300 | Z12: 0.3 | AA12: 60.01726639
A13: Thickness | B13: 12 | C13: % | N13: 14 | O13: 0.075 | Y13: 400 | Z13: 0.4 | AA13: 58.03010848
A14: Thickness | B14: =B12/B7 -> 14.28571429 | C14: mm | N14: 16 | O14: 0.075 | Y14: 500 | Z14: 0.5 | AA14: 52.940252
N15: Extrapolation for the Re calculated | Y15: 600 | Z15: 0.6 | AA15: 45.63369066
A16: Chord | N16: xtr/moy | O16: =SUM(O6:O14)/COUNT(O6:O14) -> 0.3361111111 | Y16: 700 | Z16: 0.7 | AA16: 36.63906713
A17: Dimension | B17: Value | C17: unity | Y17: 800 | Z17: 0.8 | AA17: 26.2311798
A18: chord | B18: =B14/(B13/100) -> 119.047619 | C18: mm | Y18: 900 | Z18: 0.9 | AA18: 14.47717271
A19: Aerodynamique center | B19: =B20*B18 -> 30.68333333 | C19: mm | H19: (a2)0 | N19: Thickness equation | Y19: 1000 | Z19: 1 | AA19: 1.26
A20: Aerodynamique center | B20: =(1/4)*(1+O48*B13/100) -> 0.25774 | D20: ESDU 72024 | H20: Dimension | I20: Value | J20: unity | N20: Dimension | O20: Value | P20: unity
H21: (a2)0T | I21: 3.65 | J21: rad-1 | K21: ESDU 010103 figure 1 | N21: x/c | O21: 0.9 | P21: mm
A22: Trailing edge device | H22: [(a2)0/(a2)0T] | I22: 0.9 | K22: ESDU 010103 figure 2 | N22: x/c | O22: 0.99 | P22: mm
A23: Dimension | B23: Value | C23: unity | H23: (a2)0 | I23: =I21*I22+0.15 -> 3.435 | J23: rad-1 | N23: x1/c | O23: 0.005 | P23: mm
A24: chord percentage | B24: 20 | C24: % | N24: x2/c | O24: 0.05 | P24: mm
A25: Length | B25: =B18*B24/100 -> 23.80952381 | C25: mm | N25: x3/c | O25: 0.2 | P25: mm
H26: m0 | N26: x4/c | O26: 0.5 | P26: mm
A27: (a1)0 | H27: Dimension | I27: Value | J27: unity | N27: x5/c | O27: 0.9 | P27: mm
A28: Dimension | B28: Value | C28: unity | H28: m0T | I28: 0.64 | J28: rad-1 | K28: ESDU 080101 figure 1 | N28: x6/c | O28: 0.92 | P28: mm
A29: Re | B29: =Losses!J7*Fan!G8*Aerofoil!B18/Losses!J6/1000 -> 83302.48151 | H29: [m0/m0T] | I29: 0.9 | K29: ESDU 080101 figure 2
A30: log10(Re) | B30: =LOG10(B29) -> 4.920657939 | H30: m0 | I30: =I28*I29-0.05 -> 0.526 | J30: rad-1 | N30: t0.9 | O30: =($B$13*$B$18/(0.2*100))*(0.2969*SQRT(O21)-0.126*O21-0.3516*O21^2+0.2843*O21^3-0.1015*O21^4) -> 1.723472942 | P30: mm
A31: [(a1)v/(a1)T]sym 1 | B31: 0.95 | D31: Extrapolation log10(Re)= 4.90 et xtr/c=0.4 figure 5 | N31: t0.99 | O31: =($B$13*$B$18/(0.2*100))*(0.2969*SQRT(O22)-0.126*O22-0.3516*O22^2+0.2843*O22^3-0.1015*O22^4) -> 0.3160086259 | P31: mm
A32: [(a1)v/(a1)T]sym 2 | B32: 0.95 | D32: Extrapolation log10(Re)= 4.90 et xtr/c=0.3 figure 4 | N32: zc1 | O32: =($B$13*$B$18/(0.2*100))*(0.2969*SQRT(O23)-0.126*O23-0.3516*O23^2+0.2843*O23^3-0.1015*O23^4) -> 1.453946129 | P32: mm
A33: [(a1)v/(a1)T]sym Moy | B33: =(B31+B32)/2 -> 0.95 | D33: ESDU 97020 | H33: Static test | N33: zc2 | O33: 4.23176867 | P33: mm
A34: (a1)T | B34: =0.10967*(1+O44*B13/100) -> 0.12019832 | C34: deg-1 | D34: ESDU 72024 | H34: Dimension | I34: Value | J34: unity | N34: zc3 | O34: 6.830408322 | P34: mm
A35: (a1)v or (a1)0 | B35: =B33*B34 -> 0.114188404 | C35: deg-1 | H35: lo | I35: 10 | J35: mm | K35: leading edge O | N35: zc4 | O35: 6.302410952 | P35: mm
H36: a | I36: 9 | J36: deg | N36: zc5 | O36: 1.723472942 | P36: mm
A37: Inertie | H37: a | I37: =RADIANS(I36) -> 0.1570796327 | J37: rad | N37: zc6 | O37: 1.423524915 | P37: mm
A38: Dimension | B38: Value | C38: unity | H38: b | I38: =RADIANS(I39) -> 0.1589994949 | J38: rad | K38: =I36*(B19-I35)*B35/(I30*B18+(B19-I35)*I23) -> 0.1590241653
A39: q | B39: =(1/2)*Losses!J7*Fan!G8*Fan!G8 -> 68.39932601 | C39: Kg/m.s-2 | H39: b | I39: 9.11 | J39: deg | K39: =DEGREES(K38) -> 9.111413511
A40: Inertie I | B40: =B47+B48+B49 -> 0.0015437 | C40: Kg.m2 | D40: =(B40*10^6)/(B41*B39/1000) -> 0.7899127543 | N40: tan(τa/2) | O40: =(O30-O31)/(0.18*B18) -> 0.0656816681
A41: Wing surface | B41: =B18*240 -> 28571.42857 | C41: mm2 | H41: Cl | I41: =B35*I36-I38*I23 -> 0.4815323712 | N41: τa | O41: =DEGREES(2*ATAN(O40)) -> 7.515769272 | P41: deg
A42: masse | B42: 165 | C42: g | H42: Cm | I42: =I30*I38 -> 0.08363373429
A43: Inertie I (dimensionless) | B43: =B40/(B39*B41*10^-6) -> 0.0007899127543 | N43: 2*zt2/t | O43: =2*O33/B14 -> 0.5924476138 | P43: =(B13-10)/(15-10)*(0.64-0.35)+0.35 -> 0.466
N44: F1 | O44: 0.8 | Q44: ESDU 72024 figure 1
A45: Inertia Matrix
A46: Dimension | B46: Value | C46: unity | N46: 2*zt1/t | O46: =2*O32/B14 -> 0.2035524581
A47: Iyy | B47: =9.212*10^-4 -> 0.0009212 | C47: Kg.m2 | N47: xt/c | O47: =O16 -> 0.3361111111
A48: Ixy | B48: =7.836*10^-4 -> 0.0007836 | C48: Kg.m2 | N48: F3 | O48: 0.258 | Q48: ESDU 72024 figure 4
A49: Izy | B49: =-1.611*10^-4 -> -0.0001611 | C49: Kg.m2

Sheet Model Check
A1: Aerofoil Design 2D incompressible M=0 Model verification
A4: Curve slope | H4: Static test Model | N4: Javafoil
A5: Dimension | B5: Value | C5: unity | H5: AoA α deg | I5: β rad | J5: β deg | K5: Cm | L5: Cl | N5: Cmj | O5: error % | P5: Clj | Q5: error %
A6: (a1)v or (a1)0 | B6: =Aerofoil!B35 -> 0.114188404 | C6: deg-1 | H6: -10 | I6: =H6*$B$19 -> -0.176693517 | J6: =DEGREES(I6) -> -10.12379279 | K6: =$B$8*I6 -> -0.09294078993 | L6: =$B$6*H6-$B$7*I6 -> -0.5349418092 | N6: -0.085 | O6: =100*ABS(N6-K6)/N6 -> -9.342105799 | P6: -0.47 | Q6: =100*ABS(P6-L6)/P6 -> -13.81740621
A7: (a2)0 | B7: =Aerofoil!I23 -> 3.435 | C7: rad-1 | H7: -9 | I7: =H7*$B$19 -> -0.1590241653 | J7: =DEGREES(I7) -> -9.111413511 | K7: =$B$8*I7 -> -0.08364671094 | L7: =$B$6*H7-$B$7*I7 -> -0.4814476283 | N7: -0.08 | O7: =100*ABS(N7-K7)/N7 -> -4.55838867 | P7: -0.439 | Q7: =100*ABS(P7-L7)/P7 -> -9.669163615
A8: m0 | B8: =Aerofoil!I30 -> 0.526 | C8: rad-1 | H8: -8 | I8: -0.1413548136 | J8: -8.099034232 | K8: -0.07435263194 | L8: -0.4279534474 | N8: -0.072 | O8: -3.267544365 | P8: -0.395 | Q8: -8.342644899
H9: -7 | I9: -0.1236854619 | J9: -7.086654953 | K9: -0.06505855295 | L9: -0.3744592664 | N9: -0.064 | O9: -1.653988985 | P9: -0.349 | Q9: -7.294918749
A10: Aerofoil Geometry | H10: -6 | I10: -0.1060161102 | J10: -6.074275674 | K10: -0.05576447396 | L10: -0.3209650855 | N10: -0.057 | O10: -2.167589549 | P10: -0.313 | Q10: -2.544755755
A11: Dimension | B11: Value | C11: unity | H11: -5 | I11: -0.08834675849 | J11: -5.061896395 | K11: -0.04647039496 | L11: -0.2674709046 | N11: -0.048 | O11: -3.186677157 | P11: -0.262 | Q11: -2.088131525
A12: chord | B12: =Aerofoil!B18 -> 119.047619 | C12: mm | H12: -4 | I12: -0.07067740679 | J12: -4.049517116 | K12: -0.03717631597 | L12: -0.2139767237 | N12: -0.038 | O12: -2.167589549 | P12: -0.21 | Q12: -1.893677941
A13: Aerodynamique center | B13: =Aerofoil!B20 -> 0.25774 | H13: -3 | I13: -0.05300805509 | J13: -3.037137837 | K13: -0.02788223698 | L13: -0.1604825428 | N13: -0.029 | O13: -3.854355246 | P13: -0.158 | Q13: -1.571229593
A14: Aerodynamique center | B14: =Aerofoil!B19 -> 30.68333333 | C14: mm | H14: -2 | I14: -0.03533870339 | J14: -2.024758558 | K14: -0.01858815799 | L14: -0.1069883618 | N14: -0.019 | O14: -2.167589549 | P14: -0.105 | Q14: -1.893677941
A15: lo | B15: 10 | C15: mm | D15: leading edge O | H15: -1 | I15: -0.0176693517 | J15: -1.012379279 | K15: -0.009294078993 | L15: -0.05349418092 | N15: -0.01 | O15: -7.059210071 | P15: -0.053 | Q15: -0.9324168285
H16: 0 | I16: 0 | J16: 0 | K16: 0 | L16: 0 | N16: 0 | O16: 0 | P16: 0 | Q16: 0
A17: Gain | H17: 1 | I17: 0.0176693517 | J17: 1.012379279 | K17: 0.009294078993 | L17: 0.05349418092 | N17: 0.01 | O17: 7.059210071 | P17: 0.053 | Q17: 0.9324168285
A18: Dimension | B18: Value | C18: unity | H18: 2 | I18: 0.03533870339 | J18: 2.024758558 | K18: 0.01858815799 | L18: 0.1069883618 | N18: 0.019 | O18: 2.167589549 | P18: 0.105 | Q18: 1.893677941
A19: Gain | B19: =($B$14-$B$15)*$B$6/($B$8*$B$12+($B$14-$B$15)*$B$7) -> 0.0176693517 | C19: rad/deg | H19: 3 | I19: 0.05300805509 | J19: 3.037137837 | K19: 0.02788223698 | L19: 0.1604825428 | N19: 0.029 | O19: 3.854355246 | P19: 0.158 | Q19: 1.571229593
A20: Gain | B20: =B19*180/PI() -> 1.012379279 | C20: deg/deg | H20: 4 | I20: 0.07067740679 | J20: 4.049517116 | K20: 0.03717631597 | L20: 0.2139767237 | N20: 0.038 | O20: 2.167589549 | P20: 0.21 | Q20: 1.893677941
H21: 5 | I21: 0.08834675849 | J21: 5.061896395 | K21: 0.04647039496 | L21: 0.2674709046 | N21: 0.047 | O21: 1.126819225 | P21: 0.262 | Q21: 2.088131525
H22: 6 | I22: 0.1060161102 | J22: 6.074275674 | K22: 0.05576447396 | L22: 0.3209650855 | N22: 0.056 | O22: 0.4205822191 | P22: 0.313 | Q22: 2.544755755
H23: 7 | I23: 0.1236854619 | J23: 7.086654953 | K23: 0.06505855295 | L23: 0.3744592664 | N23: 0.062 | O23: 4.93314992 | P23: 0.349 | Q23: 7.294918749
H24: 8 | I24: 0.1413548136 | J24: 8.099034232 | K24: 0.07435263194 | L24: 0.4279534474 | N24: 0.07 | O24: 6.218045633 | P24: 0.395 | Q24: 8.342644899
H25: 9 | I25: 0.1590241653 | J25: 9.111413511 | K25: 0.08364671094 | L25: 0.4814476283 | N25: 0.078 | O25: 7.239372995 | P25: 0.439 | Q25: 9.669163615
H26: 10 | I26: 0.176693517 | J26: =DEGREES(I26) -> 10.12379279 | K26: 0.09294078993 | L26: 0.5349418092 | N26: 0.083 | O26: 11.97685534 | P26: 0.47 | Q26: 13.81740621

Sheet Fan
A1: Fan
A4: Motor | F4: Air Velocity Test Section
A5: Dimension | B5: Value | C5: unity | F5: Dimension | G5: Value | H5: unity
A6: rotation/V/min | B6: 770 | C6: kv | F6: Ats | G6: ='Wind Tunnel'!B6*'Wind Tunnel'!B6 -> 0.0625 | H6: m2
A7: Tension | B7: 11.1 | C7: V | F7: Af/Ats | G7: =B18/(1000000*G6) -> 1.167454032
A8: RPM | B8: =B6*B7 -> 8547 | C8: rpm | F8: air velocity | G8: =SQRT(2*B23/Losses!J7)*G7 -> 10.5675148 | H8: m.s-1 | I8: Bernoulli
A9: Max current | B9: 30 | C9: A | F9: air velocity | G9: =3.6*G8 -> 38.04305327 | H9: km/h
A10: No load current | B10: 0.2 | C10: A
A11: Design current | B11: 9.4 | C11: A
A14: Propeller | F14: Power Plant
A15: Dimension | B15: Value | C15: unity | F15: Dimension | G15: Value | H15: unity
A16: Propeller | B16: 12 | C16: inch | F16: Power | G16: =B11*B7 -> 104.34 | H16: Watt
A17: Propeller | B17: =B16*25.4 -> 304.8 | C17: mm
A18: Propeller Area | B18: =PI()*B17*B17/4 -> 72965.87699 | C18: mm
A20: Thrust | B20: 0.75 | C20: kg
A21: losses computed | B21: =Losses!S48 -> 50.63255787 | C21: Pa
A22: losses for calculation | B22: 50.65 | C22: Pa
A23: Thrust-losses | B23: =9.81*B20/(B18*10^-6)-B22 -> 50.1848053 | C23: Pa
B24: =B23+B22 -> 100.8348053
